bitfinex/quotes_BTCUSD_20251212
["timestamp","ask_amount","ask_price","bid_price","bid_amount"]
[1765564752734,0.01103265,90640.0,90639.0,0.0432]
[1765564753124,0.01103253,90641.0,90638.0,0.0110329]
[1765564753337,0.01777603,90642.0,90638.0,0.0110329]
[1765564753743,0.01777603,90642.0,90639.0,0.01103277]
[1765564753744,0.00674362,90642.0,90639.0,0.01103277]
[1765564753962,0.001,90640.0,90639.0,0.23168628]
[1765564754398,0.00023731,90644.0,90632.0,0.02851363]
[1765564754606,0.23169099,90638.0,90634.0,0.01103338]
[1765564754874,0.01103277,90639.0,90635.0,0.01103326]
[1765564756831,0.01103277,90639.0,90636.0,0.01103314]
[1765564757030,0.01203277,90639.0,90636.0,0.01103314]
[1765564757249,0.001,90639.0,90636.0,0.23169376]
[1765564757437,0.001,90639.0,90638.0,0.220658]
[1765564757652,0.001,90639.0,90638.0,0.280268]
[1765564757851,0.00169406,90644.0,90638.0,0.280268]
[1765564757852,0.00169406,90644.0,90643.0,0.22064583]
[1765564758292,0.00169406,90644.0,90643.0,0.26113583]
[1765564758508,0.00023731,90644.0,90643.0,0.26113583]
[1765564758732,0.00023731,90644.0,90643.0,0.30433583]
[1765564759092,0.00023731,90644.0,90643.0,0.23705583]
[1765564759713,0.0075842,90654.0,90651.0,0.01103131]
[1765564759911,0.0110307,90656.0,90649.0,0.23166278]
[1765564760124,0.01103083,90655.0,90652.0,0.01103119]
[1765564760359,0.01102997,90662.0,90653.0,0.23165127]
[1765564760581,0.01102997,90662.0,90656.0,0.0110307]
[1765564760582,0.23163443,90661.0,90656.0,0.0110307]
[1765564760814,0.23163799,90659.0,90655.0,0.01103083]
[1765564760986,0.01103034,90659.0,90655.0,0.01103083]
[1765564761184,0.01103046,90658.0,90654.0,0.01103095]
[1765564761425,0.01103046,90658.0,90655.0,0.01103083]
[1765564761938,0.01103046,90658.0,90654.0,0.01103095]
[1765564762077,0.0110307,90656.0,90653.0,0.23165024]
[1765564762301,0.0110307,90656.0,90653.0,0.01103107]
[1765564762497,0.23164554,90656.0,90652.0,0.01103119]
[1765564762698,0.23164554,90656.0,90651.0,0.23165766]
[1765564762699,0.01203083,90655.0,90651.0,0.23165766]
[1765564762900,0.001,90655.0,90652.0,0.01103119]
[1765564763109,0.22161662,90655.0,90654.0,0.0432]
[1765564763345,0.22161662,90655.0,90652.0,0.01103119]
[1765564763346,0.001,90655.0,90652.0,0.01103119]
[1765564763553,0.01103034,90659.0,90656.0,0.0110307]
[1765564763923,0.01103022,90660.0,90657.0,0.01103058]
[1765564764295,0.01102997,90662.0,90659.0,0.01103034]
[1765564764626,0.01102973,90664.0,90659.0,0.01103034]
[1765564764852,0.01102973,90664.0,90658.0,0.24346716]
[1765564764853,0.231627,90663.0,90658.0,0.01103046]
[1765564765005,0.2316324,90661.0,90657.0,0.01103058]
[1765564765207,0.01103034,90659.0,90655.0,0.05423083]
[1765564765389,0.22061388,90657.0,90652.0,0.05423119]
[1765564765591,0.001,90655.0,90653.0,0.22062149]
[1765564765981,0.01102949,90666.0,90653.0,0.22062149]
[1765564765982,0.01102997,90662.0,90658.0,0.22060809]
[1765564766194,0.23163509,90660.0,90656.0,0.0110307]
[1765564766454,0.00144485,90659.0,90656.0,0.0110307]
[1765564766654,0.001,90659.0,90656.0,0.23164282]
[1765564766881,0.01248624,90666.0,90660.0,0.01103022]
[1765564767031,0.01248624,90666.0,90658.0,0.22060932]
[1765564767032,0.22059472,90664.0,90658.0,0.22060932]
[1765564767240,0.01202997,90662.0,90658.0,0.23163978]
[1765564768250,0.0110301,90661.0,90658.0,0.01103046]
[1765564768487,0.01103022,90660.0,90657.0,0.01103058]
[1765564769049,0.0110301,90661.0,90657.0,0.01103058]
[1765564769278,0.01103034,90659.0,90653.0,0.01748]
[1765564769477,0.01103034,90659.0,90655.0,0.01103083]
[1765564769679,0.0120301,90661.0,90655.0,0.01103083]
[1765564769680,0.001,90661.0,90656.0,0.0110307]
[1765564770082,0.0110307,90656.0,90653.0,0.01748]
[1765564770244,0.23164525,90656.0,90653.0,0.01748]
[1765564770443,0.22061905,90654.0,90653.0,0.01748]
[1765564770650,0.23164986,90655.0,90652.0,0.0432]
[1765564770851,0.01103095,90654.0,90651.0,0.01748]
[1765564771257,0.01103143,90650.0,90645.0,0.23167061]
[1765564771484,0.01103143,90650.0,90648.0,0.01748]
[1765564771906,0.01103143,90650.0,90642.0,0.22064703]
[1765564771907,0.23167529,90645.0,90636.0,0.01103314]
[1765564772119,0.01103241,90642.0,90638.0,0.0110329]
[1765564772478,0.22064339,90644.0,90640.0,0.01103265]
[1765564772655,0.23167555,90644.0,90640.0,0.01103265]
[1765564772868,0.01103229,90643.0,90640.0,0.01103265]
[1765564773056,0.01103229,90643.0,90638.0,0.0110329]
[1765564773057,0.01103241,90642.0,90638.0,0.0110329]
[1765564773404,0.23168109,90642.0,90638.0,0.0110329]
[1765564773608,0.01103253,90641.0,90638.0,0.0110329]
[1765564774015,0.01103241,90642.0,90638.0,0.0110329]
[1765564774930,0.23168578,90640.0,90637.0,0.01748]
[1765564775164,0.22065761,90639.0,90637.0,0.01748]
[1765564775355,0.23168578,90640.0,90637.0,0.01748]
[1765564775675,0.23168578,90640.0,90636.0,0.00011594]
[1765564775676,0.22066043,90637.0,90636.0,0.00011594]
[1765564776447,0.2923738,90637.0,90636.0,0.00011594]
[1765564776868,0.30269127,90637.0,90636.0,0.00011594]
[1765564777065,0.2309779,90637.0,90636.0,0.00011594]
[1765564777773,0.2319779,90637.0,90636.0,0.00011594]
[1765564779032,0.22166043,90637.0,90636.0,0.00011594]
[1765564779513,0.003,90637.0,90636.0,0.00011594]
[1765564779758,0.003,90637.0,90636.0,0.22077881]
[1765564780477,0.003,90637.0,90636.0,0.30504881]
[1765564780680,0.002,90637.0,90636.0,0.30504881]
[1765564781562,0.01103156,90649.0,90646.0,0.23167028]
[1765564781779,0.00023727,90652.0,90649.0,0.22062987]
[1765564781984,0.00023727,90652.0,90649.0,0.02755156]
[1765564782185,0.00023727,90652.0,90649.0,0.24818253]
[1765564782400,0.00023727,90652.0,90650.0,0.22062648]
[1765564782976,0.00023727,90652.0,90651.0,0.08427]
[1765564784933,0.00123727,90652.0,90651.0,0.08427]
[1765564785303,0.00123727,90652.0,90651.0,0.04107]
[1765564785559,0.00023727,90652.0,90651.0,0.04107]
[1765564786113,0.00023727,90652.0,90651.0,0.04207]
[1765564786336,0.00023727,90652.0,90651.0,0.09723]
[1765564787641,0.00023727,90652.0,90651.0,0.05403]
[1765564787844,0.00023727,90652.0,90651.0,0.09723]
[1765564788842,0.00023727,90652.0,90651.0,0.46458415]
[1765564788958,0.00023727,90652.0,90651.0,0.44797727]
[1765564789262,0.00023727,90652.0,90651.0,0.44897727]
[1765564789460,0.00023727,90652.0,90651.0,0.44797727]
[1765564789662,0.00023727,90652.0,90651.0,0.41122839]
[1765564789898,0.00023727,90652.0,90651.0,0.36421]
[1765564790301,0.00023727,90652.0,90651.0,0.34673]
[1765564790499,0.00023727,90652.0,90651.0,0.07351]
[1765564790901,0.00023727,90652.0,90651.0,0.07402263]
[1765564791116,0.00023727,90652.0,90651.0,0.05196]
[1765564791430,0.00023727,90652.0,90651.0,0.04896]
[1765564791786,0.00023727,90652.0,90651.0,0.07442]
[1765564791986,0.00023727,90652.0,90651.0,0.07142]
[1765564792170,0.00023727,90652.0,90651.0,0.04696]
[1765564792366,0.00023727,90652.0,90651.0,0.002]
[1765564792575,0.00023727,90652.0,90651.0,0.01948]
[1765564793240,0.00023727,90652.0,90651.0,0.01848]
[1765564793563,0.00023727,90652.0,90651.0,0.23910635]
[1765564793994,0.00023727,90652.0,90651.0,0.23810635]
[1765564794983,0.00023727,90652.0,90651.0,0.01748]
[1765564799714,0.00023727,90652.0,90651.0,0.03411]
[1765564799903,0.00023727,90652.0,90651.0,0.05857]
[1765564800118,0.00023727,90652.0,90651.0,0.10177]
[1765564800739,0.00023727,90652.0,90651.0,0.12383263]
[1765564801256,0.00023727,90652.0,90651.0,0.10177]
[1765564801461,0.00023727,90652.0,90651.0,0.46455102]
[1765564801666,0.00023727,90652.0,90651.0,0.44248839]
[1765564801905,0.00023727,90652.0,90651.0,0.44448839]
[1765564804879,0.00023727,90652.0,90651.0,0.44648839]
[1765564805079,0.2475,90679.0,90651.0,0.44648839]
[1765564805080,0.2475,90679.0,90678.0,0.22056066]
[1765564805233,0.2475,90679.0,90678.0,0.26165066]
[1765564805414,0.2475,90679.0,90678.0,0.22056066]
[1765564805800,0.2475,90679.0,90676.0,0.23159372]
[1765564806000,0.2475,90679.0,90678.0,0.22056066]
[1765564806277,0.24761592,90679.0,90676.0,0.23159372]
[1765564806584,0.22057282,90673.0,90672.0,0.01748]
[1765564806789,0.01102839,90675.0,90672.0,0.01748]
[1765564806989,0.22057226,90674.0,90672.0,0.01748]
[1765564807181,0.00145675,90675.0,90672.0,0.02850876]
[1765564807344,0.00145675,90675.0,90673.0,0.22057282]
[1765564807559,0.00145675,90675.0,90674.0,0.05983]
[1765564808354,0.00111592,90679.0,90677.0,0.22056309]
[1765564808584,0.00011592,90679.0,90678.0,0.05983]
[1765564809167,0.00011592,90679.0,90678.0,0.08429]
[1765564809342,0.00011592,90679.0,90677.0,0.22056309]
[1765564810046,0.00011592,90679.0,90678.0,0.04109]
[1765564810246,0.00111592,90679.0,90678.0,0.08429]
[1765564810646,0.00191644,90679.0,90678.0,0.08429]
[1765564811427,0.00091644,90679.0,90678.0,0.42500839]
[1765564812043,0.00091644,90679.0,90678.0,0.42700839]
[1765564812459,0.00091644,90679.0,90678.0,0.42900839]
[1765564812838,0.0002,90710.0,90678.0,0.42900839]
[1765564812839,0.0002,90710.0,90690.0,0.05001839]
[1765564812979,0.00058632,90700.0,90699.0,0.29224959]
[1765564813182,0.00058632,90700.0,90699.0,0.31670959]
[1765564814008,0.00058632,90700.0,90699.0,0.36672798]
[1765564815498,0.00058632,90700.0,90699.0,0.38420798]
[1765564815992,0.00058632,90700.0,90699.0,0.36872798]
[1765564816206,0.00058632,90700.0,90699.0,0.38620798]
[1765564816412,0.00058632,90700.0,90699.0,0.31870959]
[1765564816586,0.00058632,90700.0,90699.0,0.33818959]
[1765564817159,0.00058632,90700.0,90699.0,0.28318959]
[1765564817386,0.00058632,90700.0,90699.0,0.28518959]
[1765564818030,0.00058632,90700.0,90699.0,0.28118959]
[1765564818230,0.00058632,90700.0,90699.0,0.28218959]
[1765564818408,0.00120872,90700.0,90699.0,0.28218959]
[1765564818625,0.00120872,90700.0,90699.0,0.28418959]
[1765564818902,0.00120872,90700.0,90699.0,0.28218959]
[1765564819102,0.00120872,90700.0,90699.0,0.29969959]
[1765564819327,0.00120872,90700.0,90699.0,0.32247959]
[1765564819526,0.00120872,90700.0,90699.0,0.37249798]
[1765564820505,0.00120872,90700.0,90699.0,0.66319798]
[1765564821409,0.00120872,90700.0,90699.0,0.61999798]
[1765564821648,0.00120872,90700.0,90699.0,0.38200839]
[1765564821851,0.00120872,90700.0,90699.0,0.15194839]
[1765564822054,0.00120872,90700.0,90699.0,0.13450839]
[1765564822213,0.00120872,90700.0,90699.0,0.15194839]
[1765564822414,0.00120872,90700.0,90699.0,0.10193]
[1765564822618,0.00120872,90700.0,90699.0,0.07915]
[1765564823721,0.00120872,90700.0,90699.0,0.10664095]
[1765564823923,0.00120872,90700.0,90699.0,0.12408095]
[1765564824077,0.00120872,90700.0,90699.0,0.15171671]
[1765564824284,0.00120872,90700.0,90699.0,0.4924351]
[1765564824494,0.00120872,90700.0,90699.0,0.47038415]
[1765564826779,0.00120872,90700.0,90699.0,0.45294415]
[1765564827054,0.00120872,90700.0,90699.0,0.42530839]
[1765564827180,0.00120872,90700.0,90699.0,0.44274839]
[1765564828420,0.00120872,90700.0,90699.0,0.39273]
[1765564828599,0.00120872,90700.0,90699.0,0.37529]
[1765564828823,0.00120872,90700.0,90699.0,0.39273]
[1765564829017,0.00120872,90700.0,90699.0,0.06171]
[1765564829319,0.00120872,90700.0,90699.0,0.06264]
[1765564830572,0.00120872,90700.0,90699.0,0.28314959]
[1765564831783,0.00120872,90700.0,90699.0,0.32109959]
[1765564832553,0.00120872,90700.0,90699.0,0.37111798]
[1765564832772,0.00120872,90700.0,90699.0,0.66181798]
[1765564834957,0.00120872,90700.0,90699.0,0.64437798]
[1765564835153,0.00120872,90700.0,90699.0,0.66181798]
[1765564836570,0.00266547,90700.0,90680.0,0.00199998]
[1765564836788,0.00266547,90700.0,88244.0,0.00886318]
[1765564836789,0.01103229,90643.0,90638.0,0.0110329]
[1765564837015,0.25399997,90650.0,90601.0,0.01227]
[1765564837016,0.00099999,90640.0,90601.0,0.01227]
[1765564837224,0.00145675,90630.0,90615.0,0.0110357]
[1765564837433,0.01103411,90628.0,90602.0,0.02207456]
[1765564837633,0.00299997,90620.0,90602.0,0.02207456]
[1765564837851,0.01103643,90609.0,90601.0,0.01227]
[1765564838059,0.00299997,90610.0,90601.0,0.03434481]
[1765564838060,0.2317798,90604.0,90601.0,0.03434481]
[1765564838267,0.01103691,90605.0,90601.0,0.01227]
[1765564838461,0.22074324,90603.0,90601.0,0.01227]
[1765564838664,0.22076029,90596.0,90590.0,0.0004]
[1765564838896,0.01103777,90598.0,90590.0,0.0004]
[1765564839106,0.23179454,90598.0,90594.0,0.01227]
[1765564839951,0.23179454,90598.0,90590.0,0.0004]
[1765564840525,0.23179454,90598.0,90595.0,0.0186]
[1765564840814,0.23179454,90598.0,90595.0,0.0206]
[1765564841111,0.01103655,90608.0,90597.0,0.01507]
[1765564841308,0.00106808,90620.0,90611.0,0.01103618]
[1765564841531,6.809e-05,90620.0,90619.0,0.02734]
[1765564841949,6.809e-05,90620.0,90619.0,0.07229042]
[1765564843761,0.00099999,90630.0,90628.0,0.2206805]
[1765564843986,0.00238744,90640.0,90635.0,0.01103326]
[1765564844199,0.00099999,90640.0,90635.0,0.01103326]
[1765564844408,0.00099999,90640.0,90629.0,0.0176]
[1765564844409,0.23170713,90632.0,90629.0,0.0176]
[1765564845056,0.01103326,90635.0,90629.0,0.0176]
[1765564845262,0.01103363,90632.0,90629.0,0.0176]
[1765564845473,0.01103302,90637.0,90630.0,0.02206774]
[1765564845697,0.01103277,90639.0,90631.0,0.03795]
[1765564845903,0.0110329,90638.0,90632.0,0.02206726]
[1765564846100,0.0110329,90638.0,90631.0,0.03795]
[1765564846317,0.00238744,90640.0,90631.0,0.04898375]
[1765564846525,0.01103277,90639.0,90631.0,0.03795]
[1765564846727,0.22067261,90632.0,90631.0,0.03795]
[1765564847134,0.01103338,90634.0,90631.0,0.03795]
[1765564847357,0.01103314,90636.0,90631.0,0.03795]
[1765564847529,0.23169478,90637.0,90632.0,0.02206726]
[1765564847729,0.001,90635.0,90632.0,0.02288]
[1765564848187,0.01103314,90636.0,90634.0,0.01227]
[1765564848469,0.0110329,90638.0,90634.0,0.01227]
[1765564848689,0.00238744,90640.0,90634.0,0.03515]
[1765564848910,0.001,90639.0,90635.0,0.02206653]
[1765564849267,0.01203277,90639.0,90636.0,0.02288]
[1765564849849,0.01103277,90639.0,90636.0,0.02288]
[1765564850129,0.001,90638.0,90636.0,0.02288]
[1765564850716,0.01203265,90640.0,90637.0,0.03095]
[1765564851124,0.01103265,90640.0,90637.0,0.03095]
[1765564851283,0.001,90638.0,90637.0,0.03095]
[1765564851761,0.01103265,90640.0,90637.0,0.03095]
[1765564851892,0.22165768,90639.0,90637.0,0.03095]
[1765564852517,0.22066311,90636.0,90634.0,0.01227]
[1765564853141,0.01103302,90637.0,90634.0,0.01227]
[1765564853739,0.01103302,90637.0,90636.0,0.03095]
[1765564853963,0.001,90639.0,90636.0,0.04198314]
[1765564854173,0.001,90638.0,90637.0,0.02162]
[1765564854350,0.001,90639.0,90637.0,0.02162]
[1765564854714,0.22165686,90639.0,90637.0,0.02162]
[1765564855267,0.001,90638.0,90637.0,0.02162]
[1765564855667,0.22065722,90639.0,90637.0,0.02162]
[1765564855952,0.22165722,90639.0,90637.0,0.02162]
[1765564856326,0.22165722,90639.0,90638.0,0.0176]
[1765564856954,0.22165556,90639.0,90638.0,0.0176]
[1765564857130,0.23168073,90642.0,90638.0,0.0176]
[1765564857292,0.001,90639.0,90638.0,0.0176]
[1765564858056,0.001,90639.0,90628.0,0.00011592]
[1765564858057,0.22067991,90629.0,90628.0,0.00011592]
[1765564858257,0.29054532,90629.0,90628.0,0.00011592]
[1765564858462,0.52305609,90629.0,90628.0,0.00011592]
[1765564858816,0.22069696,90622.0,90621.0,0.00023739]
[1765564859013,0.23237314,90622.0,90621.0,0.00035333]
[1765564860701,0.57709153,90622.0,90621.0,0.00035333]
[1765564860852,0.22077248,90591.0,90590.0,0.018]
[1765564861056,0.22077248,90591.0,90590.0,0.00046809]
[1765564861358,0.23245737,90591.0,90590.0,0.00138835]
[1765564862317,0.01022814,90591.0,90590.0,0.03233835]
[1765564862458,0.00099999,90600.0,90590.0,0.03233835]
[1765564862459,0.01103764,90599.0,90590.0,0.09958584]
[1765564862662,0.01103813,90595.0,90591.0,0.0176]
[1765564863103,0.01103825,90594.0,90591.0,0.0176]
[1765564863304,0.0102374,90593.0,90591.0,0.0176]
[1765564863522,0.0102374,90592.0,90591.0,0.0176]
[1765564865379,0.0102374,90592.0,90591.0,0.09372]
[1765564866191,0.0102374,90592.0,90591.0,0.0176]
[1765564866761,0.23100744,90592.0,90591.0,0.0176]
[1765564867057,0.0102374,90592.0,90591.0,0.04855]
[1765564867253,0.0102374,90592.0,90591.0,0.31449248]
[1765564867634,0.0102374,90592.0,90591.0,0.060788]
[1765564870802,0.23100744,90592.0,90591.0,0.0176]
[1765564871263,0.23246419,90592.0,90591.0,0.01849057]
[1765564871467,0.0102374,90592.0,90591.0,0.01849057]
[1765564872415,0.0112374,90592.0,90591.0,0.01849057]
[1765564872826,0.0102374,90592.0,90591.0,0.01849057]
[1765564873908,0.0112374,90592.0,90591.0,0.29229029]
[1765564874126,0.0102374,90592.0,90591.0,0.35857105]
[1765564874630,0.0102374,90592.0,90591.0,0.31538305]
[1765564874828,0.0102374,90592.0,90591.0,0.35857105]
[1765564877134,0.01169415,90592.0,90591.0,0.01849057]
[1765564877335,0.01169415,90592.0,90591.0,0.00089057]
[1765564878448,0.01269415,90592.0,90591.0,0.00089057]
[1765564878627,0.01369415,90592.0,90591.0,0.00089057]
[1765564879045,0.03738048,90592.0,90591.0,0.00089057]
[1765564879967,0.01369415,90592.0,90591.0,0.00089057]
[1765564880229,0.0122374,90592.0,90591.0,0.00089057]
[1765564882747,0.0122374,90592.0,90591.0,0.04407857]
[1765564883307,0.0122374,90592.0,90591.0,0.07197857]
[1765564883509,0.0122374,90592.0,90591.0,0.29275105]
[1765564883929,0.0122374,90592.0,90591.0,0.26485105]
[1765564884361,0.0122374,90592.0,90591.0,0.04407857]
[1765564885296,0.0122374,90592.0,90591.0,0.22166305]
[1765564885543,0.0122374,90592.0,90591.0,0.33604105]
[1765564886598,0.002,90592.0,90591.0,0.62674105]
[1765564887328,0.001,90592.0,90591.0,0.58355305]
[1765564887536,0.01103545,90617.0,90611.0,0.043188]
[1765564887742,0.04514934,90616.0,90612.0,0.02859606]
[1765564887937,0.01103545,90617.0,90612.0,0.02859606]
[1765564887938,0.03411377,90615.0,90613.0,0.00023743]
[1765564888174,0.03411377,90614.0,90613.0,0.00023743]
[1765564889272,0.01032203,90614.0,90613.0,0.00023743]
[1765564889688,0.01032203,90614.0,90613.0,0.04342543]
[1765564889891,0.002,90616.0,90614.0,0.22071644]
[1765564890039,0.002,90616.0,90615.0,0.114378]
[1765564890233,0.0110346,90624.0,90623.0,0.043188]
[1765564890439,0.02135509,90624.0,90623.0,0.060748]
[1765564891062,0.01032049,90624.0,90623.0,0.060748]
[1765564891267,0.01103436,90626.0,90625.0,0.043188]
[1765564891441,0.22068248,90628.0,90627.0,0.043188]
[1765564891442,0.01103411,90628.0,90627.0,0.043188]
[1765564893478,0.01103411,90628.0,90623.0,0.01756]
[1765564893479,0.23271881,90628.0,90623.0,0.01756]
[1765564893680,0.23471881,90628.0,90623.0,0.060748]
[1765564894028,0.01103423,90627.0,90624.0,0.0110346]
[1765564894379,0.01103411,90628.0,90624.0,0.0110346]
[1765564894586,0.01103423,90627.0,90623.0,0.07178272]
[1765564894946,0.01103436,90626.0,90623.0,0.060748]
[1765564895229,0.22068965,90625.0,90623.0,0.060748]
[1765564895431,0.22068965,90625.0,90624.0,0.043188]
[1765564895929,0.01103423,90627.0,90626.0,0.043188]
[1765564896512,0.22071003,90617.0,90614.0,0.02207164]
[1765564896716,0.01103557,90616.0,90615.0,0.01756]
[1765564897116,0.01103533,90618.0,90615.0,0.01756]
[1765564897321,0.01103521,90619.0,90616.0,0.01756]
[1765564897518,0.23172654,90625.0,90616.0,0.02859557]
[1765564897719,0.00445675,90627.0,90625.0,0.043188]
[1765564897920,0.001,90627.0,90626.0,0.04546]
[1765564898121,0.001,90627.0,90626.0,0.131938]
[1765564898448,0.001,90627.0,90626.0,0.088648]
[1765564898744,0.001,90627.0,90626.0,0.060748]
[1765564899405,0.22068328,90628.0,90627.0,0.043188]
[1765564899610,0.01103363,90632.0,90631.0,0.043188]
[1765564900370,0.23170624,90632.0,90631.0,0.043188]
[1765564900841,0.23370624,90632.0,90631.0,0.043188]
[1765564904073,0.22068478,90627.0,90626.0,0.060748]
[1765564905247,0.22071644,90614.0,90613.0,0.04342543]
[1765564905446,0.01103557,90616.0,90615.0,0.043188]
[1765564905660,0.00099999,90620.0,90617.0,0.043188]
[1765564905860,0.01203508,90620.0,90617.0,0.043188]
[1765564906074,0.00099999,90620.0,90617.0,0.05422345]
[1765564906418,0.00099999,90620.0,90617.0,0.27493023]
[1765564906893,0.00238744,90630.0,90624.0,0.0110346]
[1765564907100,0.01103314,90636.0,90632.0,0.01103363]
[1765564907247,0.44122111,90658.0,90631.0,0.22067268]
[1765564907248,0.01103241,90642.0,90637.0,0.01103302]
[1765564907464,0.22064374,90644.0,90643.0,0.043188]
[1765564907465,0.2316759,90644.0,90643.0,0.043188]
[1765564907705,0.23167225,90646.0,90642.0,0.01103241]
[1765564907897,0.0110318,90647.0,90646.0,0.043188]
[1765564908099,0.01103253,90641.0,90638.0,0.01756]
[1765564908321,0.01103253,90641.0,90640.0,0.043188]
[1765564908663,0.01103192,90646.0,90644.0,0.043188]
[1765564908929,0.22064224,90645.0,90644.0,0.043188]
[1765564909155,0.00011593,90647.0,90646.0,0.043188]
[1765564909349,0.00011593,90647.0,90646.0,0.114378]
[1765564909776,0.00011593,90647.0,90646.0,0.33501652]
[1765564910305,0.00011593,90647.0,90646.0,0.29172652]
[1765564910546,0.00011593,90647.0,90646.0,0.071088]
[1765564912149,0.22075202,90647.0,90646.0,0.071088]
[1765564912349,0.00011593,90647.0,90646.0,0.071088]
[1765564913433,0.00011593,90647.0,90646.0,0.110218]
[1765564915063,0.00011593,90647.0,90646.0,0.071088]
[1765564916292,0.00011593,90647.0,90646.0,0.0279]
[1765564916495,0.00011593,90647.0,90646.0,0.043188]
[1765564917179,0.00011593,90647.0,90646.0,0.24687852]
[1765564917386,0.00011593,90647.0,90646.0,0.32919652]
[1765564917982,0.00011593,90647.0,90646.0,0.57670852]
[1765564918183,0.00011593,90647.0,90646.0,0.61989652]
[1765564920397,0.00011593,90647.0,90646.0,0.62089652]
[1765564920679,0.00011593,90647.0,90646.0,0.67091491]
[1765564921399,0.00194652,90671.0,90670.0,0.55446812]
[1765564921622,0.2204911,90707.0,90670.0,0.55446812]
[1765564921623,0.01102462,90706.0,90699.0,0.043188]
[1765564921887,0.00058659,90700.0,90699.0,0.01752]
[1765564922093,0.00204334,90700.0,90699.0,0.01752]
[1765564922294,0.00204334,90700.0,90699.0,0.060708]
[1765564922607,0.00058659,90700.0,90699.0,0.060708]
[1765564923496,0.00158659,90700.0,90699.0,0.060708]
[1765564924956,0.00304334,90700.0,90699.0,0.060708]
[1765564925200,0.22057013,90675.0,90670.0,0.070129]
[1765564925421,0.23258388,90680.0,90675.0,0.30172839]
[1765564925590,0.23258388,90680.0,90679.0,0.043188]
[1765564925799,0.23158389,90680.0,90679.0,0.043188]
[1765564926174,0.22056553,90676.0,90675.0,0.043188]
[1765564926374,0.23158914,90678.0,90677.0,0.043188]
[1765564926551,0.23158389,90680.0,90678.0,0.043188]
[1765564926552,0.23158539,90680.0,90678.0,0.043188]
[1765564926754,0.01102779,90680.0,90678.0,0.043188]
[1765564927422,0.01102742,90683.0,90678.0,0.05421603]
[1765564927574,0.23156078,90689.0,90682.0,0.22055093]
[1765564927883,0.2315606,90689.0,90688.0,0.043188]
[1765564928224,0.23209417,90689.0,90688.0,0.043188]
[1765564929369,0.00053357,90689.0,90688.0,0.043188]
[1765564929571,0.00053357,90689.0,90688.0,0.26372434]
[1765564929779,0.00053357,90689.0,90688.0,0.044188]
[1765564931013,0.00053357,90689.0,90688.0,0.070428]
[1765564931418,0.00053357,90689.0,90688.0,0.29096434]
[1765564931619,0.00053357,90689.0,90688.0,0.070428]
[1765564931863,0.00053357,90689.0,90688.0,0.044188]
[1765564933250,0.00053357,90689.0,90688.0,0.06637]
[1765564933455,0.00053357,90689.0,90688.0,0.127078]
[1765564933654,0.00053357,90689.0,90688.0,0.34761434]
[1765564934063,0.00053357,90689.0,90688.0,0.061708]
[1765564934606,0.00053357,90689.0,90688.0,0.087948]
[1765564934899,0.00053357,90689.0,90688.0,0.127078]
[1765564935045,0.00053357,90689.0,90688.0,0.14913163]
[1765564937370,0.00053357,90689.0,90688.0,0.43983163]
[1765564937626,0.00053357,90689.0,90688.0,0.417778]
[1765564939691,0.00053357,90689.0,90688.0,0.416778]
[1765564939914,0.00053357,90689.0,90688.0,0.418778]
[1765564940113,0.00053357,90689.0,90688.0,0.420778]
[1765564940312,0.00053357,90689.0,90688.0,0.401258]
[1765564940514,0.00053357,90689.0,90688.0,0.37559]
[1765564940717,0.00053357,90689.0,90688.0,0.36007]
[1765564940983,0.00053357,90689.0,90688.0,0.130078]
[1765564941630,0.00053357,90689.0,90688.0,0.15213163]
[1765564942953,0.00053357,90689.0,90688.0,0.44283163]
[1765564943174,0.00053357,90689.0,90688.0,0.420778]
[1765564947860,0.00053357,90689.0,90688.0,0.047188]
[1765564948011,0.22106748,90689.0,90688.0,0.064708]
[1765564948185,0.22252423,90689.0,90688.0,0.02152]
[1765564948739,0.23283179,90689.0,90688.0,0.01952]
[1765564948920,0.22252423,90689.0,90688.0,0.01752]
[1765564949130,0.00199032,90689.0,90688.0,0.01752]
[1765564949334,0.00053357,90689.0,90688.0,0.123398]
[1765564949536,0.00053357,90689.0,90688.0,0.63463434]
[1765564950539,0.00053357,90689.0,90688.0,0.63563434]
[1765564951623,0.00053357,90689.0,90688.0,0.01852]
[1765564951855,0.00199032,90689.0,90688.0,0.01852]
[1765564952199,0.00199032,90689.0,90688.0,0.02052]
[1765564952823,0.00199032,90689.0,90688.0,0.01752]
[1765564953883,0.00053357,90689.0,90688.0,0.123398]
[1765564954084,0.00053357,90689.0,90688.0,0.14545163]
[1765564954290,0.00053357,90689.0,90688.0,0.43615163]
[1765564954420,0.00053357,90689.0,90688.0,0.414098]
[1765564956321,0.00053357,90689.0,90688.0,0.420098]
[1765564956479,0.00053357,90689.0,90688.0,0.417098]
[1765564956678,0.00053357,90689.0,90688.0,0.414098]
[1765564956888,0.00053357,90689.0,90688.0,0.417098]
[1765564957089,0.00053357,90689.0,90688.0,0.47011639]
[1765564958261,0.00058659,90700.0,90699.0,0.51120959]
[1765564958464,0.00058659,90700.0,90699.0,0.64649598]
[1765564958671,0.00058659,90700.0,90699.0,0.68462598]
[1765564959504,0.00058659,90700.0,90699.0,0.68862598]
[1765564959728,0.00058659,90700.0,90699.0,0.62108759]
[1765564959905,0.00058659,90700.0,90699.0,0.62508759]
[1765564960180,0.00058659,90700.0,90699.0,0.64260759]
[1765564961136,0.00058659,90700.0,90699.0,0.63860759]
[1765564961537,0.00058659,90700.0,90699.0,0.64160759]
[1765564961758,0.00058659,90700.0,90699.0,0.63760759]
[1765564961964,0.00058659,90700.0,90699.0,0.63460759]
[1765564962286,0.00058659,90700.0,90699.0,0.63960759]
[1765564962710,0.00058659,90700.0,90699.0,0.63660759]
[1765564963112,0.00058659,90700.0,90699.0,0.63560759]
[1765564963627,0.00058659,90700.0,90699.0,0.376968]
[1765564963772,0.00058659,90700.0,90699.0,0.30922]
[1765564963964,0.00091258,90700.0,90699.0,0.30922]
[1765564964167,0.00091258,90700.0,90699.0,0.63560759]
[1765564964783,0.00091258,90700.0,90699.0,0.63760759]
[1765564965944,0.00091258,90700.0,90699.0,0.59441959]
[1765564966288,0.00091258,90700.0,90699.0,0.63760759]
[1765564966498,0.00091258,90700.0,90699.0,0.59441959]
[1765564966910,0.00091258,90700.0,90699.0,0.63760759]
[1765564967392,0.00091258,90700.0,90699.0,0.59441959]
[1765564967981,0.00091258,90700.0,90699.0,0.63760759]
[1765564970955,0.00091258,90700.0,90699.0,0.59441959]
[1765564971158,0.00091258,90700.0,90699.0,0.63760759]
[1765564971627,0.00091258,90700.0,90699.0,0.59441959]
[1765564971907,0.00091258,90700.0,90699.0,0.63760759]
[1765564973521,0.00091258,90700.0,90699.0,0.62008759]